fUSD/lending_fUSD_20240826
["ID","MTS","AMOUNT","RATE_DAILY","PERIOD"]
[336028099,1724671832235,-300.3,0.000101,2]
[336028100,1724671832258,-251.88644517,0.000101,2]
[336028101,1724671832269,-3256.74546623,0.000101,2]
[336028102,1724671832358,-261.15578167,0.000101,2]
[336028103,1724671832369,-517.85068696,0.000101,2]
[336028104,1724671832382,-32872.33724283,0.000101,2]
[336028105,1724671832395,-150.0,0.00010779,2]
[336028106,1724671832404,-67605.12319439,0.0001078,2]
[336028107,1724671832414,-4045.4833,0.00010812,2]
[336028108,1724671832423,-46027.0487,0.00010856,2]
[336028109,1724671832433,-203.67457996,0.00010861,2]
[336028110,1724671832443,-800.2497334,0.00010861,2]
[336028111,1724671832456,-1256.18139789,0.00010888,2]
[336028112,1724671832466,-6098.29439999,0.0001089,2]
[336028114,1724671832478,-5648.98114622,0.0001089,2]
[336028115,1724671832487,-1751.67438682,0.0001089,2]
[336028118,1724671832498,-297.99594133,0.0001089,2]
[336028120,1724671832510,-942.67948185,0.0001089,2]
[336028122,1724671832520,-3774.57,0.00010899,2]
[336028124,1724671832530,-7949.42,0.00010899,2]
[336028126,1724671832540,-3467.15,0.00010899,2]
[336028128,1724671832550,-1110.16,0.00010899,2]
[336028130,1724671832560,-2753.47,0.00010899,2]
[336028132,1724671832569,-189.94,0.00010899,2]
[336028134,1724671832578,-2641.75,0.00010899,2]
[336028136,1724671832588,-198.81651896,0.00010899,2]
[336028138,1724671832597,-198.81651888,0.00010899,2]
[336028140,1724671832606,-198.81651888,0.00010899,2]
[336028142,1724671832615,-198.81651888,0.00010899,2]
[336028143,1724671832625,-198.81651888,0.00010899,2]
[336028145,1724671832634,-198.81651888,0.00010899,2]
[336028147,1724671832643,-198.81651888,0.00010899,2]
[336028149,1724671832653,-198.81651888,0.00010899,2]
[336028151,1724671832663,-198.81651888,0.00010899,2]
[336028153,1724671832673,-198.81651888,0.000109,2]
[336028154,1724671832683,-6438.33629161,0.00010949,2]
[336028155,1724671832694,-2375.16069498,0.00010949,2]
[336028156,1724671833343,-5269.58487329,0.00010949,2]
[336028157,1724671833355,-3485.16814012,0.00010949,2]
[336028158,1724671833364,-7831.5578807,0.00010956,2]
[336028161,1724671838229,-800.2497334,0.00010852,2]
[336028162,1724671838238,-1075.68439056,0.00010861,2]
[336028163,1724671838248,-222.94150994,0.00010934,2]
[336028164,1724671838258,-10321.3176524,0.00010956,2]
[336028165,1724671838270,-28119.1141531,0.00010956,2]
[336028166,1724671838282,-7544.50302701,0.00010956,2]
[336028167,1724671838295,-590.05754824,0.00010956,2]
[336028168,1724671838308,-10441.17998013,0.00010956,2]
[336028169,1724671838320,-15876.03150282,0.00010956,2]
[336028170,1724671838330,-500.0,0.00010958,2]
[336028171,1724671838340,-150.098848,0.00010958,2]
[336028172,1724671838349,-155.635157,0.00010958,2]
[336028173,1724671838359,-500.0,0.00010958,2]
[336028174,1724671838369,-498.45752207,0.00010958,2]
[336028175,1724671838381,-500.0,0.00010958,2]
[336028176,1724671838392,-503.24707268,0.00010958,2]
[336028177,1724671838403,-500.0,0.00010958,2]
[336028178,1724671838412,-387.41244378,0.00010958,2]
[336028179,1724671838421,-500.0,0.00010958,2]
[336028180,1724671838430,-500.0,0.00010958,2]
[336028181,1724671838440,-207.6337712,0.00010958,2]
[336028182,1724671838449,-500.0,0.00010958,2]
[336028183,1724671838460,-500.0,0.00010958,2]
[336028184,1724671838471,-500.0,0.00010958,2]
[336028185,1724671838481,-260.44295799,0.00010958,2]
[336028186,1724671838490,-500.0,0.00010958,2]
[336028187,1724671838499,-150.098845,0.00010958,2]
[336028188,1724671838508,-500.0,0.00010958,2]
[336028189,1724671838517,-500.0,0.00010958,2]
[336028190,1724671838526,-500.0,0.00010958,2]
[336028191,1724671838535,-500.0,0.00010958,2]
[336028193,1724671838546,-498.4654927,0.00010958,2]
[336028194,1724671838556,-526.16273535,0.00010958,2]
[336028195,1724671838565,-518.856228,0.00010958,2]
[336028196,1724671838574,-509.96832995,0.00010958,2]
[336028197,1724671838584,-513.3041136,0.00010958,2]
[336028198,1724671838593,-508.32370003,0.00010958,2]
[336028199,1724671838603,-520.55359387,0.00010958,2]
[336028200,1724671838612,-508.31717497,0.00010958,2]
[336028201,1724671838621,-507.1930344,0.00010958,2]
[336028202,1724671838631,-509.82513681,0.00010958,2]
[336028204,1724671838641,-507.69340222,0.00010958,2]
[336028206,1724671838650,-511.68680784,0.00010958,2]
[336028208,1724671838659,-508.16973302,0.00010958,2]
[336028210,1724671838669,-508.70628697,0.00010958,2]
[336028212,1724671838679,-515.37682834,0.00010958,2]
[336028214,1724671838688,-515.12829546,0.00010958,2]
[336028216,1724671838699,-515.78542716,0.00010958,2]
[336028218,1724671838711,-500.0,0.00010958,2]
[336028221,1724671838720,-500.0,0.00010958,2]
[336028223,1724671838730,-306.44116952,0.00010958,2]
[336028226,1724671838739,-500.0,0.00010958,2]
[336028228,1724671838749,-500.0,0.00010958,2]
[336028231,1724671838758,-500.0,0.00010958,2]
[336028233,1724671838772,-563.30038855,0.00010958,2]
[336028234,1724671838782,-500.0,0.00010958,2]
[336028236,1724671838792,-500.0,0.00010958,2]
[336028237,1724671838802,-197.92785141,0.00010958,2]
[336028238,1724671838812,-500.0,0.00010958,2]
[336028239,1724671838822,-150.0,0.00010958,2]
[336028240,1724671838832,-500.0,0.00010958,2]
[336028242,1724671838841,-500.0,0.00010958,2]
[336028244,1724671838851,-500.0,0.00010958,2]
[336028246,1724671838861,-500.0,0.00010958,2]
[336028248,1724671838870,-500.0,0.00010958,2]
[336028250,1724671838880,-500.0,0.00010958,2]
[336028252,1724671838890,-500.0,0.00010958,2]
[336028253,1724671838900,-510.23045378,0.00010958,2]
[336028255,1724671838909,-515.28124494,0.00010958,2]
[336028257,1724671838925,-150.0,0.00010958,2]
[336028259,1724671838934,-500.0,0.00010958,2]
[336028261,1724671838945,-500.0,0.00010958,2]
[336028263,1724671838954,-500.0,0.00010958,2]
[336028265,1724671838964,-500.0,0.00010958,2]
[336028267,1724671838976,-500.0,0.00010958,2]
[336028269,1724671838987,-500.0,0.00010958,2]
[336028271,1724671838997,-506.15493001,0.00010958,2]
[336028273,1724671839008,-500.0,0.00010958,2]
[336028275,1724671839018,-246.0750971,0.00010958,2]
[336028277,1724671839031,-617.33083774,0.00010958,2]
[336028279,1724671839042,-500.0,0.00010958,2]
[336028281,1724671839051,-500.0,0.00010958,2]
[336028283,1724671839060,-500.0,0.00010958,2]
[336028285,1724671839070,-500.0,0.00010958,2]
[336028287,1724671839079,-500.0,0.00010958,2]
[336028289,1724671839088,-500.0,0.00010958,2]
[336028291,1724671839098,-392.50827213,0.00010958,2]
[336028293,1724671839108,-1457.121308,0.00010958,2]
[336028295,1724671839117,-500.0,0.00010958,2]
[336028297,1724671839127,-500.0,0.00010958,2]
[336028299,1724671839138,-500.0,0.00010958,2]
[336028301,1724671839147,-500.0,0.00010958,2]
[336028303,1724671839157,-500.0,0.00010958,2]
[336028305,1724671839166,-561.80387977,0.00010958,2]
[336028307,1724671839175,-501.01137996,0.00010958,2]
[336028309,1724671839184,-500.0,0.00010958,2]
[336028311,1724671839195,-500.0,0.00010958,2]
[336028313,1724671839205,-500.0,0.00010958,2]
[336028315,1724671839216,-500.0,0.00010958,2]
[336028317,1724671839225,-500.0,0.00010958,2]
[336028318,1724671839235,-503.17016322,0.00010958,2]
[336028320,1724671839244,-500.0,0.00010958,2]
[336028322,1724671839254,-500.0,0.00010958,2]
[336028324,1724671839263,-500.0,0.00010958,2]
[336028326,1724671839274,-500.0,0.00010958,2]
[336028328,1724671839283,-500.0,0.00010958,2]
[336028330,1724671839292,-500.0,0.00010958,2]
[336028332,1724671839302,-500.0,0.00010958,2]
[336028334,1724671839313,-500.0,0.00010958,2]
[336028336,1724671839327,-500.0,0.00010958,2]
[336028338,1724671839336,-500.0,0.00010958,2]
[336028340,1724671839346,-500.0,0.00010958,2]
[336028342,1724671839355,-500.0,0.00010958,2]
[336028344,1724671839365,-500.0,0.00010958,2]
[336028346,1724671839375,-500.0,0.00010958,2]
[336028348,1724671839384,-500.0,0.00010958,2]
[336028350,1724671839397,-500.0,0.00010958,2]
[336028352,1724671839406,-500.0,0.00010958,2]
[336028354,1724671839417,-500.0,0.00010958,2]
[336028356,1724671839427,-500.0,0.00010958,2]
[336028358,1724671839437,-500.0,0.00010958,2]
[336028359,1724671839446,-500.0,0.00010958,2]
[336028361,1724671839455,-500.0,0.00010958,2]
[336028363,1724671839466,-500.0,0.00010958,2]
[336028366,1724671839479,-500.0,0.00010958,2]
[336028367,1724671839490,-500.0,0.00010958,2]
[336028369,1724671839500,-500.0,0.00010958,2]
[336028371,1724671839510,-500.0,0.00010958,2]
[336028373,1724671839519,-500.0,0.00010958,2]
[336028375,1724671839528,-500.0,0.00010958,2]
[336028377,1724671839538,-500.0,0.00010958,2]
[336028379,1724671839548,-500.0,0.00010958,2]
[336028381,1724671839558,-500.0,0.00010958,2]
[336028383,1724671839568,-500.0,0.00010958,2]
[336028385,1724671839578,-500.0,0.00010958,2]
[336028387,1724671839588,-500.0,0.00010958,2]
[336028389,1724671839597,-500.0,0.00010958,2]
[336028391,1724671839607,-500.0,0.00010958,2]
[336028393,1724671839617,-500.0,0.00010958,2]
[336028395,1724671839626,-500.0,0.00010958,2]
[336028397,1724671839636,-500.0,0.00010958,2]
[336028399,1724671839645,-500.0,0.00010958,2]
[336028401,1724671839655,-500.0,0.00010958,2]
[336028403,1724671839665,-500.0,0.00010958,2]
[336028405,1724671839674,-500.0,0.00010958,2]
[336028406,1724671839684,-500.0,0.00010958,2]
[336028408,1724671839693,-500.0,0.00010958,2]
[336028410,1724671839703,-847.01,0.00010958,2]
[336028412,1724671839713,-500.0,0.00010958,2]
[336028414,1724671839722,-500.0,0.00010958,2]
[336028416,1724671839732,-500.0,0.00010958,2]
[336028418,1724671839742,-500.0,0.00010958,2]
[336028420,1724671839752,-500.0,0.00010958,2]
[336028422,1724671839762,-500.0,0.00010958,2]
[336028424,1724671839771,-500.0,0.00010958,2]
[336028426,1724671839782,-500.0,0.00010958,2]
[336028428,1724671839792,-500.0,0.00010958,2]
[336028430,1724671839801,-500.0,0.00010958,2]
[336028432,1724671839811,-500.0,0.00010958,2]
[336028434,1724671839821,-500.0,0.00010958,2]
[336028436,1724671839832,-500.0,0.00010958,2]
[336028438,1724671839842,-500.0,0.00010958,2]
[336028440,1724671839853,-500.0,0.00010958,2]
[336028442,1724671839863,-500.0,0.00010958,2]
[336028444,1724671839873,-500.0,0.00010958,2]
[336028446,1724671839883,-526.60792658,0.00010958,2]
[336028448,1724671839893,-500.0,0.00010958,2]
[336028450,1724671839903,-500.0,0.00010958,2]
[336028452,1724671839912,-503.957174,0.00010958,2]
[336028454,1724671839921,-500.0,0.00010958,2]
[336028457,1724671839931,-500.0,0.00010958,2]
[336028458,1724671839940,-525.71847962,0.00010958,2]
[336028460,1724671839949,-500.0,0.00010958,2]
[336028462,1724671839960,-512.68866243,0.00010958,2]
[336028464,1724671839969,-500.0,0.00010958,2]
[336028466,1724671839978,-500.0,0.00010958,2]
[336028467,1724671839987,-500.0,0.00010958,2]
[336028469,1724671839997,-500.0,0.00010958,2]
[336028472,1724671840008,-526.59168512,0.00010958,2]
[336028474,1724671840017,-500.0,0.00010958,2]
[336028475,1724671840027,-403.57532344,0.00010958,2]
[336028477,1724671840036,-286.33199014,0.00010958,2]
[336028479,1724671840046,-500.0,0.00010958,2]
[336028481,1724671840055,-500.0,0.00010958,2]
[336028483,1724671840065,-154.39,0.00010959,2]
[336028485,1724671840074,-250.0,0.00010959,2]
[336028487,1724671840084,-150.0,0.00010959,2]
[336028489,1724671840094,-500.0,0.0001096,2]
[336028491,1724671840103,-171.35047999,0.00010962,2]
[336028493,1724671840112,-242.27347398,0.00010969,2]
[336028495,1724671840122,-342.41627858,0.00010973,2]
[336028497,1724671840131,-155.24468221,0.00010973,2]
[336028499,1724671840141,-1457.121308,0.00010988,2]
[336028501,1724671840151,-152.11,0.00010988,2]
[336028503,1724671840160,-19748.09004597,0.00010989,2]
[336028505,1724671840170,-211.0,0.0001099,2]
[336028507,1724671840179,-152.39,0.0001099,2]
[336028509,1724671840190,-500.0,0.00010993,2]
[336028510,1724671840201,-500.0,0.00010994,2]
[336028512,1724671840212,-513.13645488,0.00010994,2]
[336028514,1724671840222,-508.3261664,0.00010994,2]
[336028516,1724671840232,-506.86620324,0.00010994,2]
[336028518,1724671840244,-498.56763367,0.00010994,2]
[336028520,1724671840254,-528.61968862,0.00010994,2]
[336028522,1724671840263,-523.77315573,0.00010994,2]
[336028524,1724671840272,-519.43835445,0.00010994,2]
[336028526,1724671840282,-502.0510188,0.00010994,2]
[336028528,1724671840291,-502.4692665,0.00010994,2]
[336028530,1724671840300,-280.17140643,0.00010994,2]
[336028532,1724671840310,-500.0,0.00010994,2]
[336028534,1724671840319,-500.0,0.00010994,2]
[336028536,1724671840328,-500.0,0.00010994,2]
[336028537,1724671840338,-500.0,0.00010994,2]
[336028540,1724671840350,-173.08583248,0.00010994,2]
[336028542,1724671840360,-500.0,0.00010994,2]
[336028544,1724671840370,-500.0,0.00010994,2]
[336028546,1724671840380,-538.93711602,0.00010994,2]
[336028548,1724671840394,-256.96675794,0.00010994,2]
[336028550,1724671840404,-500.0,0.00010994,2]
[336028551,1724671840413,-500.0,0.00010994,2]
[336028553,1724671840423,-500.0,0.00010995,2]
[336028555,1724671840432,-280.9994445,0.00010996,2]
[336028557,1724671840443,-150.098848,0.00010996,2]
[336028559,1724671840452,-155.635157,0.00010996,2]
[336028561,1724671840465,-500.0,0.00010996,2]
[336028563,1724671840475,-500.0,0.00010996,2]
[336028565,1724671840485,-500.0,0.00010996,2]
[336028567,1724671840494,-500.0,0.00010996,2]
[336028569,1724671840504,-500.0,0.00010996,2]
[336028571,1724671840514,-500.0,0.00010996,2]
[336028573,1724671840524,-500.0,0.00010996,2]
[336028575,1724671840535,-1457.121308,0.00010996,2]
[336028576,1724671840544,-1457.121308,0.00010996,2]
[336028577,1724671840554,-1457.121308,0.00010996,2]
[336028578,1724671840563,-1457.121308,0.00010996,2]
[336028579,1724671840573,-1457.121308,0.00010996,2]
[336028580,1724671840583,-3566.11880229,0.00010997,2]
[336028581,1724671840594,-150.098848,0.00010997,2]
[336028582,1724671840604,-155.635157,0.00010997,2]
[336028583,1724671840614,-265.33651646,0.00010997,2]
[336028584,1724671840624,-500.0,0.00010997,2]
[336028585,1724671840634,-500.0,0.00010997,2]
[336028586,1724671840644,-399.84732462,0.00010997,2]
[336028587,1724671840654,-500.0,0.00010997,2]
[336028588,1724671840663,-578.04643558,0.00010997,2]
[336028589,1724671840672,-526.73356738,0.00010997,2]
[336028590,1724671840682,-500.0,0.00010997,2]
[336028591,1724671840692,-500.0,0.00010997,2]
[336028592,1724671840702,-500.0,0.00010997,2]
[336028593,1724671840713,-524.18247941,0.00010997,2]
[336028594,1724671840723,-1457.121308,0.00010997,2]
[336028595,1724671840732,-1457.121308,0.00010997,2]
[336028596,1724671840742,-1457.121308,0.00010997,2]
[336028597,1724671840751,-1457.121308,0.00010997,2]
[336028598,1724671840761,-1457.121308,0.00010997,2]
[336028599,1724671840770,-1457.121308,0.00010997,2]
[336028600,1724671840779,-1457.121308,0.00010997,2]
[336028601,1724671840789,-1457.121308,0.00010997,2]
[336028602,1724671840798,-1457.121308,0.00010997,2]
[336028603,1724671840808,-1457.121308,0.00010997,2]
[336028604,1724671840818,-1457.121308,0.00010997,2]
[336028605,1724671840827,-1457.121308,0.00010997,2]
[336028606,1724671840836,-500.0,0.00010997,2]
[336028607,1724671840846,-500.0,0.00010997,2]
[336028608,1724671840855,-500.0,0.00010997,2]
[336028609,1724671840864,-500.0,0.00010997,2]
[336028610,1724671840874,-500.0,0.00010997,2]
[336028611,1724671840883,-500.0,0.00010997,2]
[336028612,1724671840893,-481.83325273,0.00010997,2]
[336028613,1724671840904,-500.0,0.00010997,2]
[336028614,1724671840914,-500.0,0.00010997,2]
[336028615,1724671840923,-500.0,0.00010997,2]
[336028616,1724671840932,-500.0,0.00010997,2]
[336028617,1724671840942,-500.0,0.00010997,2]
[336028619,1724671840951,-500.0,0.00010997,2]
[336028620,1724671840960,-500.0,0.00010997,2]
[336028622,1724671840969,-544.08776345,0.00010997,2]
[336028624,1724671840979,-500.0,0.00010997,2]
[336028626,1724671840989,-500.0,0.00010997,2]
[336028628,1724671840998,-500.0,0.00010997,2]
[336028630,1724671841008,-500.0,0.00010997,2]
[336028632,1724671841017,-500.0,0.00010997,2]
[336028634,1724671841026,-500.0,0.00010997,2]
[336028636,1724671841036,-500.0,0.00010997,2]
[336028638,1724671841045,-500.0,0.00010997,2]
[336028640,1724671841055,-527.67,0.00010997,2]
[336028641,1724671841064,-500.0,0.00010997,2]
[336028643,1724671841073,-500.0,0.00010997,2]
[336028645,1724671841083,-500.0,0.00010997,2]
[336028647,1724671841092,-500.0,0.00010997,2]
[336028649,1724671841103,-500.0,0.00010997,2]
[336028651,1724671841112,-500.0,0.00010997,2]
[336028653,1724671841121,-500.0,0.00010997,2]
[336028655,1724671841131,-500.0,0.00010997,2]
[336028657,1724671841141,-500.0,0.00010997,2]
[336028659,1724671841150,-500.0,0.00010997,2]
[336028661,1724671841159,-500.0,0.00010997,2]
[336028663,1724671841169,-512.5585371,0.00010997,2]
[336028665,1724671841178,-500.0,0.00010997,2]
[336028667,1724671841187,-500.0,0.00010997,2]
[336028669,1724671841197,-500.0,0.00010997,2]
[336028671,1724671841206,-500.0,0.00010997,2]
[336028672,1724671841216,-258.20192451,0.00010997,2]
[336028674,1724671841226,-309.76688801,0.00010997,2]
[336028676,1724671841236,-500.0,0.00010997,2]
[336028678,1724671841245,-500.0,0.00010997,2]
[336028680,1724671841254,-645.62955858,0.00010997,2]
[336028682,1724671841264,-500.0,0.00010997,2]
[336028684,1724671841274,-500.0,0.00010997,2]
[336028686,1724671841284,-500.0,0.00010998,2]
[336028688,1724671841294,-175.4848678,0.00010998,2]
[336028690,1724671841303,-500.0,0.00010998,2]
[336028692,1724671841313,-500.0,0.00010998,2]
[336028694,1724671841322,-500.0,0.00010998,2]
[336028695,1724671841331,-383.06770972,0.00010998,2]
[336028698,1724671841348,-116.93229028,0.00010998,2]
[336028700,1724671841357,-500.0,0.00010998,2]
[336028702,1724671841367,-500.0,0.00010998,2]
[336028704,1724671841377,-150.0,0.00010998,2]
[336028706,1724671841387,-500.0,0.00010998,2]
[336028708,1724671841400,-62.19189823,0.00010998,2]
[336028710,1724671841412,-437.80810177,0.00010998,2]
[336028712,1724671841422,-500.0,0.00010998,2]
[336028714,1724671841431,-500.0,0.00010998,2]
[336028715,1724671841442,-500.0,0.00010998,2]
[336028717,1724671841451,-500.0,0.00010998,2]
[336028719,1724671841461,-500.0,0.00010998,2]
[336028721,1724671841470,-500.0,0.00010998,2]
[336028723,1724671841480,-500.0,0.00010998,2]
[336028725,1724671841489,-500.0,0.00010998,2]
[336028727,1724671841500,-500.0,0.00010998,2]
[336028729,1724671841509,-500.0,0.00010998,2]
[336028731,1724671841519,-500.0,0.00010998,2]
[336028733,1724671841530,-492.58889559,0.00010998,2]
[336028735,1724671841542,-7.41110441,0.00010998,2]
[336028737,1724671841551,-289.2738809,0.00010998,2]
[336028757,1724671841747,-66.33476047,0.00010998,2]
[336028760,1724671841768,-257.82237684,0.00010998,2]
[336028762,1724671841780,-175.84286269,0.00010998,2]
[336028765,1724671841790,-500.0,0.00010998,2]
[336028767,1724671841799,-225.71,0.00010998,2]
[336028769,1724671841809,-500.0,0.00010998,2]
[336028770,1724671841818,-500.0,0.00010998,2]
[336028772,1724671841828,-500.0,0.00010998,2]
[336028774,1724671841837,-500.0,0.00010998,2]
[336028776,1724671841847,-292.12,0.00010998,2]
[336028778,1724671841857,-500.0,0.00010998,2]
[336028780,1724671841866,-500.0,0.00010998,2]
[336028782,1724671841876,-500.0,0.00010998,2]
[336028784,1724671841885,-500.0,0.00010998,2]
[336028786,1724671841895,-461.9736023,0.00010998,2]
[336028788,1724671841907,-38.0263977,0.00010998,2]
[336028790,1724671841916,-500.0,0.00010998,2]
[336028792,1724671841925,-500.0,0.00010998,2]
[336028794,1724671841935,-500.0,0.00010998,2]
[336028796,1724671841944,-500.0,0.00010998,2]
[336028798,1724671841953,-500.0,0.00010998,2]
[336028800,1724671841963,-500.0,0.00010998,2]
[336028802,1724671841972,-33.9052023,0.00010998,2]
[336028805,1724671841991,-466.0947977,0.00010998,2]
[336028807,1724671842001,-500.0,0.00010998,2]
[336028809,1724671842010,-536.48916656,0.00010998,2]
[336028811,1724671842019,-500.0,0.00010998,2]
[336028813,1724671842028,-609.9383084,0.00010998,2]
[336028814,1724671842037,-500.0,0.00010998,2]
[336028816,1724671842046,-500.0,0.00010998,2]
[336028818,1724671842055,-500.0,0.00010998,2]
[336028820,1724671842064,-500.0,0.00010998,2]
[336028822,1724671842073,-500.0,0.00010998,2]
[336028824,1724671842082,-500.0,0.00010998,2]
[336028826,1724671842091,-500.0,0.00010998,2]
[336028827,1724671842101,-500.0,0.00010998,2]
[336028828,1724671842110,-412.89878762,0.00010998,2]
[336028829,1724671842121,-87.10121238,0.00010998,2]
[336028830,1724671842132,-500.0,0.00010998,2]
[336028831,1724671842141,-500.0,0.00010998,2]
[336028832,1724671842151,-86.55153216,0.00010998,2]
[336028833,1724671842168,-413.44846784,0.00010998,2]
[336028834,1724671842180,-12.90888641,0.00010998,2]
[336028835,1724671842197,-564.10245138,0.00010998,2]
[336028836,1724671842207,-1414.5,0.00010998,2]
[336028843,1724671842346,-551.59924657,0.00010958,2]
[336028845,1724671842357,-627.217079,0.00010998,2]
[336028847,1724671842367,-500.0,0.00010998,2]
[336028853,1724671842426,-77.80745135,0.00010998,2]
[336028949,1724671843257,-3758.48,0.00010955,2]
[336028951,1724671843266,-509.53144535,0.00010958,2]
[336028953,1724671843275,-36952.88397154,0.00010998,2]
[336028955,1724671843286,-26178.64987462,0.00010998,2]
[336028957,1724671843295,-500.0,0.00010998,2]
[336028959,1724671843304,-500.0,0.00010998,2]
[336028961,1724671843313,-500.0,0.00010998,2]
[336028963,1724671843323,-500.0,0.00010998,2]
[336028965,1724671843332,-500.0,0.00010998,2]
[336028967,1724671843341,-500.0,0.00010998,2]
[336028969,1724671843350,-500.0,0.00010998,2]
[336028971,1724671843359,-500.0,0.00010998,2]
[336028973,1724671843369,-500.0,0.00010998,2]
[336028975,1724671843378,-500.0,0.00010998,2]
[336028977,1724671843387,-500.0,0.00010998,2]
[336028979,1724671843402,-500.0,0.00010998,2]
[336028981,1724671843411,-500.0,0.00010998,2]
[336028983,1724671843421,-500.0,0.00010998,2]
[336028985,1724671843431,-500.0,0.00010998,2]
[336028988,1724671843442,-500.0,0.00010998,2]
[336028990,1724671843454,-500.0,0.00010998,2]
[336028992,1724671843465,-500.0,0.00010998,2]
[336028994,1724671843476,-500.0,0.00010998,2]
[336028996,1724671843486,-5175.3667729,0.00010998,2]
[336028998,1724671843495,-500.0,0.00010998,2]
[336029000,1724671843505,-500.0,0.00010998,2]
[336029002,1724671843515,-847.01,0.00010998,2]
[336029004,1724671843525,-500.0,0.00010998,2]
[336029006,1724671843534,-500.0,0.00010998,2]
[336029008,1724671843543,-500.0,0.00010998,2]
[336029010,1724671843553,-500.0,0.00010998,2]
[336029012,1724671843563,-500.0,0.00010998,2]
[336029014,1724671843572,-500.0,0.00010998,2]
[336029016,1724671843581,-500.0,0.00010998,2]
[336029018,1724671843591,-500.0,0.00010998,2]
[336029020,1724671843600,-500.0,0.00010998,2]
[336029022,1724671843609,-500.0,0.00010998,2]
[336029024,1724671843619,-278.11,0.00010998,2]
[336029026,1724671843628,-500.0,0.00010998,2]
[336029027,1724671843638,-547.26287692,0.00010998,2]
[336029029,1724671843647,-500.0,0.00010998,2]
[336029031,1724671843657,-500.0,0.00010998,2]
[336029033,1724671843666,-500.0,0.00010998,2]
[336029035,1724671843675,-500.0,0.00010998,2]
[336029037,1724671843685,-500.0,0.00010998,2]
[336029039,1724671843695,-500.0,0.00010998,2]
[336029041,1724671843704,-500.0,0.00010998,2]
[336029043,1724671843715,-507.93490819,0.00010998,2]
[336029045,1724671843724,-500.0,0.00010998,2]
[336029047,1724671843733,-632.24478421,0.00010998,2]
[336029049,1724671843743,-503.80422451,0.00010998,2]
[336029051,1724671843752,-500.0,0.00010998,2]
[336029053,1724671843761,-500.0,0.00010998,2]
[336029055,1724671843771,-500.0,0.00010998,2]
[336029057,1724671843781,-500.0,0.00010998,2]
[336029059,1724671843790,-500.0,0.00010998,2]
[336029061,1724671843799,-500.0,0.00010998,2]
[336029063,1724671843808,-500.0,0.00010998,2]
[336029065,1724671843817,-17061.5410762,0.00010998,2]
[336029068,1724671843829,-500.0,0.00010998,2]
[336029070,1724671843838,-500.0,0.00010998,2]
[336029072,1724671843847,-500.0,0.00010998,2]
[336029073,1724671843856,-260.09,0.00010998,2]
[336029076,1724671843867,-515.12238787,0.00010999,2]
[336029078,1724671843876,-500.0,0.00010999,2]
[336029080,1724671843885,-500.0,0.00010999,2]
[336029082,1724671843896,-505.45798422,0.00010999,2]
[336029084,1724671843906,-543.9101318,0.00010999,2]
[336029086,1724671843915,-527.24644136,0.00010999,2]
[336029087,1724671843924,-402.25443738,0.00010999,2]
[336029089,1724671843934,-521.33150609,0.00010999,2]
[336029091,1724671843944,-508.36019354,0.00010999,2]
[336029093,1724671843955,-518.08865891,0.00010999,2]
[336029095,1724671843968,-509.40278361,0.00010999,2]
[336029098,1724671843978,-509.53296962,0.00010999,2]